[Event "Titled Tuesday Blitz October 31 Late 2023"]
[White "Tokhirjonova, Gulrukhbegim"]
[Black "Curtis, John"]
[WhiteFideId "14203626"]
[BlackFideId "3200256"]
[WhiteElo "2705"]
[BlackElo "2158"]
[Result "1/2-1/2"]
[Round "3"]
[TimeControl "180+1"]
[Date "2023.10.31"]
[WhiteClock "0:00:11"]
[BlackClock "0:00:11"]
[Board "48"]

1. e4 {[%clk 0:02:54]}  e5 {[%clk 0:02:59]} 2. Nf3 {[%clk 0:02:54]}  Nc6 {[%clk 0:02:59]} 3. Bc4 {[%clk 0:02:53]}  Bc5 {[%clk 0:02:56]} 4. c3 {[%clk 0:02:51]}  Bb6 {[%clk 0:02:56]} 5. d4 {[%clk 0:02:48]}  Qe7 {[%clk 0:02:56]} 6. d5 {[%clk 0:02:46]}  Nb8 {[%clk 0:02:56]} 7. b4 {[%clk 0:02:43]}  d6 {[%clk 0:02:55]} 8. h3 {[%clk 0:02:39]}  a5 {[%clk 0:02:55]} 9. Bg5 {[%clk 0:02:27]}  Nf6 {[%clk 0:02:52]} 10. Qe2 {[%clk 0:02:25]}  axb4 {[%clk 0:02:42]} 11. cxb4 {[%clk 0:02:24]}  Nbd7 {[%clk 0:02:12]} 12. Nc3 {[%clk 0:02:17]}  h6 {[%clk 0:02:07]} 13. Bd2 {[%clk 0:02:05]}  Bd4 {[%clk 0:02:05]} 14. Nxd4 {[%clk 0:02:01]}  exd4 {[%clk 0:02:05]} 15. Nb5 {[%clk 0:02:01]}  Nb6 {[%clk 0:02:05]} 16. Bd3 {[%clk 0:01:57]}  O-O {[%clk 0:01:42]} 17. O-O {[%clk 0:01:53]}  Re8 {[%clk 0:01:38]} 18. Rfe1 {[%clk 0:01:50]}  Qd7 {[%clk 0:01:24]} 19. Qf3 {[%clk 0:01:34]}  Nh7 {[%clk 0:00:59]} 20. Nxd4 {[%clk 0:01:28]}  Ra3 {[%clk 0:00:56]} 21. Nb5 {[%clk 0:00:54]}  Ra4 {[%clk 0:00:48]} 22. a3 {[%clk 0:00:52]}  Ng5 {[%clk 0:00:39]} 23. Bxg5 {[%clk 0:00:52]}  hxg5 {[%clk 0:00:40]} 24. Nd4 {[%clk 0:00:49]}  c6 {[%clk 0:00:39]} 25. Rec1 {[%clk 0:00:38]}  g4 {[%clk 0:00:31]} 26. hxg4 {[%clk 0:00:36]}  Qxg4 {[%clk 0:00:32]} 27. dxc6 {[%clk 0:00:36]}  bxc6 {[%clk 0:00:27]} 28. Rxc6 {[%clk 0:00:33]}  Qxf3 {[%clk 0:00:19]} 29. gxf3 {[%clk 0:00:32]}  Nd7 {[%clk 0:00:19]} 30. Rac1 {[%clk 0:00:28]}  Ra8 {[%clk 0:00:13]} 31. Rxd6 {[%clk 0:00:20]}  Ne5 {[%clk 0:00:12]} 32. Be2 {[%clk 0:00:19]}  Rxa3 {[%clk 0:00:13]} 33. Kf1 {[%clk 0:00:17]}  Nd3 {[%clk 0:00:12]} 34. Bxd3 {[%clk 0:00:16]}  Rxd3 {[%clk 0:00:11]} 35. Ke2 {[%clk 0:00:16]}  Ra3 {[%clk 0:00:10]} 36. Nf5 {[%clk 0:00:16]}  Bxf5 {[%clk 0:00:09]} 37. Rc5 {[%clk 0:00:14]}  Be6 {[%clk 0:00:09]} 38. b5 {[%clk 0:00:14]}  Rb3 {[%clk 0:00:10]} 39. b6 {[%clk 0:00:15]}  Rb8 {[%clk 0:00:10]} 40. Rcc6 {[%clk 0:00:15]}  Rb5 {[%clk 0:00:09]} 41. Ke3 {[%clk 0:00:15]}  g6 {[%clk 0:00:10]} 42. f4 {[%clk 0:00:16]}  Kf8 {[%clk 0:00:10]} 43. Kd4 {[%clk 0:00:15]}  Ke7 {[%clk 0:00:11]} 44. e5 {[%clk 0:00:15]}  Ke8 {[%clk 0:00:08]} 45. f3 {[%clk 0:00:16]}  Rb4+ {[%clk 0:00:09]} 46. Ke3 {[%clk 0:00:15]}  Rb5 {[%clk 0:00:10]} 47. Kd4 {[%clk 0:00:14]}  Rb4+ {[%clk 0:00:10]} 48. Ke3 {[%clk 0:00:14]}  Rb5 {[%clk 0:00:11]} 49. Kd4 {[%clk 0:00:11]} 1/2-1/2


[Site "https://www.chess.com"]

[Event "Titled Tuesday Blitz October 31 Late 2023"]
[White "Oparin, Grigoriy"]
[Black "Ramadoss, Ashokkumar"]
[WhiteFideId "24125890"]
[BlackFideId "5040990"]
[WhiteElo "2963"]
[BlackElo "2380"]
[Result "1-0"]
[Round "3"]
[TimeControl "180+1"]
[Date "2023.10.31"]
[WhiteClock "0:01:46"]
[BlackClock "0:00:10"]
[Board "49"]

1. Nc3 {[%clk 0:03:00]}  d5 {[%clk 0:02:58]} 2. e4 {[%clk 0:03:00]}  dxe4 {[%clk 0:02:57]} 3. Nxe4 {[%clk 0:03:01]}  Bd7 {[%clk 0:02:56]} 4. Nf3 {[%clk 0:02:49]}  Bc6 {[%clk 0:02:57]} 5. Qe2 {[%clk 0:02:43]}  e6 {[%clk 0:02:54]} 6. Ne5 {[%clk 0:02:40]}  Nf6 {[%clk 0:02:42]} 7. Nxc6 {[%clk 0:02:39]}  Nxc6 {[%clk 0:02:43]} 8. c3 {[%clk 0:02:39]}  Nxe4 {[%clk 0:02:37]} 9. Qxe4 {[%clk 0:02:38]}  Qd5 {[%clk 0:02:38]} 10. Qxd5 {[%clk 0:02:33]}  exd5 {[%clk 0:02:37]} 11. d4 {[%clk 0:02:34]}  O-O-O {[%clk 0:02:34]} 12. Be3 {[%clk 0:02:34]}  Bd6 {[%clk 0:02:34]} 13. Kd2 {[%clk 0:02:34]}  Rde8 {[%clk 0:02:30]} 14. h4 {[%clk 0:02:32]}  h6 {[%clk 0:02:15]} 15. g3 {[%clk 0:02:30]}  Nd8 {[%clk 0:02:10]} 16. Bh3+ {[%clk 0:02:30]}  Kb8 {[%clk 0:02:10]} 17. h5 {[%clk 0:02:31]}  c6 {[%clk 0:02:10]} 18. Rae1 {[%clk 0:02:30]}  Re7 {[%clk 0:01:59]} 19. f4 {[%clk 0:02:29]}  Rhe8 {[%clk 0:01:58]} 20. Bf2 {[%clk 0:02:30]}  Kc7 {[%clk 0:01:57]} 21. Rxe7+ {[%clk 0:02:28]}  Rxe7 {[%clk 0:01:57]} 22. Kd3 {[%clk 0:02:29]}  Ne6 {[%clk 0:01:41]} 23. b3 {[%clk 0:02:28]}  Nf8 {[%clk 0:01:31]} 24. c4 {[%clk 0:02:24]}  Kd8 {[%clk 0:01:22]} 25. Bg2 {[%clk 0:02:23]}  dxc4+ {[%clk 0:01:22]} 26. bxc4 {[%clk 0:02:24]}  Nd7 {[%clk 0:01:17]} 27. Rb1 {[%clk 0:02:20]}  Nf6 {[%clk 0:01:10]} 28. Bf3 {[%clk 0:02:21]}  b6 {[%clk 0:00:42]} 29. Be3 {[%clk 0:02:21]}  c5 {[%clk 0:00:39]} 30. d5 {[%clk 0:02:19]}  Kc7 {[%clk 0:00:34]} 31. g4 {[%clk 0:02:19]}  Nd7 {[%clk 0:00:32]} 32. Rg1 {[%clk 0:02:12]}  f6 {[%clk 0:00:30]} 33. Be4 {[%clk 0:02:12]}  Nb8 {[%clk 0:00:28]} 34. Bf5 {[%clk 0:02:08]}  Na6 {[%clk 0:00:28]} 35. a3 {[%clk 0:02:08]}  Kd8 {[%clk 0:00:26]} 36. Rb1 {[%clk 0:02:05]}  Nc7 {[%clk 0:00:24]} 37. Bd2 {[%clk 0:02:00]}  Ne8 {[%clk 0:00:24]} 38. Bg6 {[%clk 0:01:54]}  Bc7 {[%clk 0:00:24]} 39. a4 {[%clk 0:01:51]}  Nd6 {[%clk 0:00:23]} 40. g5 {[%clk 0:01:50]}  fxg5 {[%clk 0:00:22]} 41. fxg5 {[%clk 0:01:51]}  Nf7 {[%clk 0:00:14]} 42. gxh6 {[%clk 0:01:46]}  Nxh6 {[%clk 0:00:10]} 43. Bg5 {[%clk 0:01:46]} 1-0


[Site "https://www.chess.com"]

[Event "Titled Tuesday Blitz October 31 Late 2023"]
[White "Zhigalko, Sergei"]
[Black "HeroRubiksCube"]
[WhiteFideId "13502956"]
[WhiteElo "2903"]
[BlackElo "2517"]
[Result "1-0"]
[Round "3"]
[TimeControl "180+1"]
[Date "2023.10.31"]
[WhiteClock "0:01:42"]
[BlackClock "0:01:45"]
[Board "51"]

1. e4 {[%clk 0:03:00]}  e6 {[%clk 0:02:59]} 2. d4 {[%clk 0:02:58]}  d5 {[%clk 0:02:59]} 3. e5 {[%clk 0:02:57]}  c5 {[%clk 0:02:59]} 4. c3 {[%clk 0:02:57]}  Nc6 {[%clk 0:02:56]} 5. Nf3 {[%clk 0:02:58]}  Bd7 {[%clk 0:02:56]} 6. Be2 {[%clk 0:02:58]}  Qb6 {[%clk 0:02:54]} 7. O-O {[%clk 0:02:57]}  cxd4 {[%clk 0:02:53]} 8. cxd4 {[%clk 0:02:58]}  Nge7 {[%clk 0:02:53]} 9. Na3 {[%clk 0:02:47]}  Nf5 {[%clk 0:02:51]} 10. Nc2 {[%clk 0:02:48]}  Be7 {[%clk 0:02:51]} 11. Bd3 {[%clk 0:02:46]}  Nfxd4 {[%clk 0:02:41]} 12. Nfxd4 {[%clk 0:02:45]}  Nxd4 {[%clk 0:02:42]} 13. Be3 {[%clk 0:02:45]}  Bc5 {[%clk 0:02:32]} 14. b4 {[%clk 0:02:45]}  Bxb4 {[%clk 0:02:21]} 15. Nxd4 {[%clk 0:02:32]}  Qd8 {[%clk 0:02:11]} 16. Rb1 {[%clk 0:02:30]}  a5 {[%clk 0:02:09]} 17. Qg4 {[%clk 0:02:30]}  g6 {[%clk 0:02:07]} 18. Bg5 {[%clk 0:02:27]}  Qb8 {[%clk 0:02:03]} 19. Bf6 {[%clk 0:02:27]}  Rg8 {[%clk 0:02:03]} 20. Rfc1 {[%clk 0:02:18]}  h5 {[%clk 0:02:02]} 21. Qf4 {[%clk 0:02:14]}  b6 {[%clk 0:01:51]} 22. Nb5 {[%clk 0:01:51]}  Bc5 {[%clk 0:01:49]} 23. Rxc5 {[%clk 0:01:48]}  bxc5 {[%clk 0:01:49]} 24. Nd6+ {[%clk 0:01:48]}  Kf8 {[%clk 0:01:45]} 25. Qh6+ {[%clk 0:01:42]} 1-0


[Site "https://www.chess.com"]

[Event "Titled Tuesday Blitz October 31 Late 2023"]
[White "Vasquez Schroeder, Rodrigo"]
[Black "Girsh, Daniel"]
[WhiteFideId "3400042"]
[BlackFideId "30949190"]
[WhiteElo "2882"]
[BlackElo "2513"]
[Result "1-0"]
[Round "3"]
[TimeControl "180+1"]
[Date "2023.10.31"]
[WhiteClock "0:01:15"]
[BlackClock "0:00:06"]
[Board "53"]

1. e4 {[%clk 0:03:00]}  e5 {[%clk 0:02:59]} 2. Nf3 {[%clk 0:03:01]}  Nc6 {[%clk 0:03:00]} 3. Bb5 {[%clk 0:03:01]}  a6 {[%clk 0:02:59]} 4. Ba4 {[%clk 0:03:02]}  Nf6 {[%clk 0:03:00]} 5. O-O {[%clk 0:03:02]}  b5 {[%clk 0:02:56]} 6. Bb3 {[%clk 0:03:01]}  Be7 {[%clk 0:02:56]} 7. Re1 {[%clk 0:03:01]}  O-O {[%clk 0:02:55]} 8. h3 {[%clk 0:02:59]}  Bb7 {[%clk 0:02:53]} 9. d3 {[%clk 0:02:54]}  d6 {[%clk 0:02:53]} 10. c3 {[%clk 0:02:53]}  Na5 {[%clk 0:02:36]} 11. Bc2 {[%clk 0:02:53]}  c5 {[%clk 0:02:36]} 12. Nbd2 {[%clk 0:02:50]}  Nc6 {[%clk 0:02:35]} 13. Nf1 {[%clk 0:02:43]}  Qc7 {[%clk 0:02:33]} 14. Bg5 {[%clk 0:02:41]}  h6 {[%clk 0:02:32]} 15. Bh4 {[%clk 0:02:40]}  Nh5 {[%clk 0:02:26]} 16. Bxe7 {[%clk 0:02:36]}  Qxe7 {[%clk 0:02:26]} 17. Ne3 {[%clk 0:02:33]}  Nf4 {[%clk 0:02:10]} 18. h4 {[%clk 0:02:30]}  Bc8 {[%clk 0:02:05]} 19. g3 {[%clk 0:02:29]}  Ne6 {[%clk 0:01:50]} 20. Bb3 {[%clk 0:02:17]}  Kh7 {[%clk 0:01:38]} 21. Bd5 {[%clk 0:02:14]}  Bb7 {[%clk 0:01:35]} 22. a4 {[%clk 0:02:12]}  Nc7 {[%clk 0:01:30]} 23. axb5 {[%clk 0:02:06]}  axb5 {[%clk 0:01:30]} 24. Rxa8 {[%clk 0:01:59]}  Rxa8 {[%clk 0:01:30]} 25. Bb3 {[%clk 0:01:36]}  b4 {[%clk 0:01:18]} 26. Nf5 {[%clk 0:01:32]}  Qf6 {[%clk 0:01:16]} 27. Ng5+ {[%clk 0:01:20]}  hxg5 {[%clk 0:00:54]} 28. Qh5+ {[%clk 0:01:19]}  Kg8 {[%clk 0:00:54]} 29. hxg5 {[%clk 0:01:19]}  g6 {[%clk 0:00:42]} 30. Qh6 {[%clk 0:01:18]}  Qe6 {[%clk 0:00:06]} 31. Qg7# {[%clk 0:01:15]} 1-0


[Site "https://www.chess.com"]

[Event "Titled Tuesday Blitz October 31 Late 2023"]
[White "Nazari, Arad"]
[Black "The_Straightforward_Rook"]
[WhiteFideId "12577324"]
[WhiteElo "2843"]
[BlackElo "2504"]
[Result "1-0"]
[Round "3"]
[TimeControl "180+1"]
[Date "2023.10.31"]
[WhiteClock "0:01:43"]
[BlackClock "0:00:04"]
[Board "55"]

1. e4 {[%clk 0:02:53]}  e5 {[%clk 0:02:59]} 2. f4 {[%clk 0:02:53]}  exf4 {[%clk 0:02:57]} 3. Nf3 {[%clk 0:02:53]}  Nf6 {[%clk 0:02:57]} 4. e5 {[%clk 0:02:52]}  Nh5 {[%clk 0:02:53]} 5. d4 {[%clk 0:02:51]}  d5 {[%clk 0:02:46]} 6. c4 {[%clk 0:02:49]}  g5 {[%clk 0:02:44]} 7. g4 {[%clk 0:02:39]}  Ng7 {[%clk 0:02:39]} 8. Nc3 {[%clk 0:02:37]}  Bxg4 {[%clk 0:02:20]} 9. Nxd5 {[%clk 0:02:35]}  Be7 {[%clk 0:02:12]} 10. Rg1 {[%clk 0:02:28]}  h5 {[%clk 0:00:40]} 11. h3 {[%clk 0:02:23]}  Bxf3 {[%clk 0:00:33]} 12. Qxf3 {[%clk 0:02:24]}  c6 {[%clk 0:00:30]} 13. Nxe7 {[%clk 0:02:16]}  Qxe7 {[%clk 0:00:31]} 14. Bxf4 {[%clk 0:02:12]}  gxf4 {[%clk 0:00:23]} 15. Rxg7 {[%clk 0:02:12]}  Qb4+ {[%clk 0:00:22]} 16. Qc3 {[%clk 0:02:12]}  Na6 {[%clk 0:00:19]} 17. a3 {[%clk 0:02:10]}  Qxc3+ {[%clk 0:00:19]} 18. bxc3 {[%clk 0:02:11]}  Kf8 {[%clk 0:00:18]} 19. Rg5 {[%clk 0:02:10]}  c5 {[%clk 0:00:18]} 20. Bg2 {[%clk 0:02:07]}  Re8 {[%clk 0:00:19]} 21. Bxb7 {[%clk 0:02:06]}  Nc7 {[%clk 0:00:14]} 22. Bc6 {[%clk 0:02:04]}  Re7 {[%clk 0:00:14]} 23. Rf5 {[%clk 0:02:02]}  Kg7 {[%clk 0:00:13]} 24. Kf2 {[%clk 0:01:58]}  Ne6 {[%clk 0:00:11]} 25. d5 {[%clk 0:01:56]}  Nd8 {[%clk 0:00:11]} 26. Rg1+ {[%clk 0:01:56]}  Kf8 {[%clk 0:00:11]} 27. Ba4 {[%clk 0:01:51]}  f3 {[%clk 0:00:06]} 28. Kxf3 {[%clk 0:01:48]}  Rh6 {[%clk 0:00:05]} 29. Rfg5 {[%clk 0:01:42]}  f6 {[%clk 0:00:04]} 30. Rg8+ {[%clk 0:01:42]}  Kf7 {[%clk 0:00:04]} 31. R1g7# {[%clk 0:01:43]} 1-0


[Site "https://www.chess.com"]

[Event "Titled Tuesday Blitz October 31 Late 2023"]
[White "Pinero Rodriguez, Carlos Jose"]
[Black "Zakhartsov, Vladimir"]
[WhiteFideId "3901726"]
[BlackFideId "4145097"]
[WhiteElo "2497"]
[BlackElo "2823"]
[Result "0-1"]
[Round "3"]
[TimeControl "180+1"]
[Date "2023.10.31"]
[WhiteClock "0:00:00"]
[BlackClock "0:00:46"]
[Board "57"]

1. d4 {[%clk 0:03:00]}  g6 {[%clk 0:02:52]} 2. c4 {[%clk 0:02:58]}  Bg7 {[%clk 0:02:53]} 3. Nc3 {[%clk 0:02:54]}  c5 {[%clk 0:02:51]} 4. Nf3 {[%clk 0:02:54]}  cxd4 {[%clk 0:02:51]} 5. Nxd4 {[%clk 0:02:54]}  Nc6 {[%clk 0:02:51]} 6. Nc2 {[%clk 0:02:51]}  Bxc3+ {[%clk 0:02:50]} 7. bxc3 {[%clk 0:02:50]}  d6 {[%clk 0:02:49]} 8. f3 {[%clk 0:02:50]}  Qa5 {[%clk 0:02:45]} 9. Bd2 {[%clk 0:02:44]}  Nf6 {[%clk 0:02:45]} 10. e4 {[%clk 0:02:44]}  O-O {[%clk 0:02:44]} 11. Ne3 {[%clk 0:02:42]}  Be6 {[%clk 0:02:29]} 12. Nd5 {[%clk 0:02:29]}  Rac8 {[%clk 0:02:16]} 13. Be2 {[%clk 0:02:24]}  Nd7 {[%clk 0:02:00]} 14. O-O {[%clk 0:02:18]}  Rfe8 {[%clk 0:01:58]} 15. Kh1 {[%clk 0:02:12]}  Nce5 {[%clk 0:01:55]} 16. Qb3 {[%clk 0:01:58]}  Qa6 {[%clk 0:01:41]} 17. Rab1 {[%clk 0:01:39]}  Nxc4 {[%clk 0:01:34]} 18. Bxc4 {[%clk 0:01:35]}  Qxc4 {[%clk 0:01:31]} 19. Qxc4 {[%clk 0:01:32]}  Rxc4 {[%clk 0:01:32]} 20. Rxb7 {[%clk 0:01:31]}  Ra4 {[%clk 0:01:16]} 21. Nc7 {[%clk 0:01:20]}  Nc5 {[%clk 0:01:15]} 22. Rb4 {[%clk 0:00:56]}  Rc8 {[%clk 0:01:11]} 23. Nxe6 {[%clk 0:00:50]}  fxe6 {[%clk 0:01:12]} 24. Rxa4 {[%clk 0:00:43]}  Nxa4 {[%clk 0:01:13]} 25. Rb1 {[%clk 0:00:39]}  Rc7 {[%clk 0:00:59]} 26. Rb3 {[%clk 0:00:36]}  Nb6 {[%clk 0:00:51]} 27. Kg1 {[%clk 0:00:32]}  Nc4 {[%clk 0:00:50]} 28. Be1 {[%clk 0:00:00]}  Kf7 {[%clk 0:00:46]} 0-1


[Site "https://www.chess.com"]

[Event "Titled Tuesday Blitz October 31 Late 2023"]
[White "Pakleza, Zbigniew"]
[Black "Dudzinski, Pawel"]
[WhiteFideId "1119290"]
[BlackFideId "1117890"]
[WhiteElo "2816"]
[BlackElo "2497"]
[Result "1-0"]
[Round "3"]
[TimeControl "180+1"]
[Date "2023.10.31"]
[WhiteClock "0:01:00"]
[BlackClock "0:00:01"]
[Board "58"]

1. d4 {[%clk 0:03:00]}  Nf6 {[%clk 0:02:56]} 2. Nf3 {[%clk 0:03:01]}  e6 {[%clk 0:02:55]} 3. Bf4 {[%clk 0:03:01]}  d5 {[%clk 0:02:55]} 4. e3 {[%clk 0:03:01]}  c5 {[%clk 0:02:52]} 5. c3 {[%clk 0:03:02]}  Nc6 {[%clk 0:02:52]} 6. Nbd2 {[%clk 0:03:02]}  Bd6 {[%clk 0:02:52]} 7. Bg3 {[%clk 0:03:03]}  O-O {[%clk 0:02:50]} 8. Bd3 {[%clk 0:03:03]}  b6 {[%clk 0:02:50]} 9. Ne5 {[%clk 0:03:02]}  Qc7 {[%clk 0:02:44]} 10. f4 {[%clk 0:03:01]}  Bb7 {[%clk 0:02:33]} 11. Qf3 {[%clk 0:02:52]}  Rac8 {[%clk 0:02:06]} 12. Bh4 {[%clk 0:02:45]}  Be7 {[%clk 0:01:52]} 13. Qh3 {[%clk 0:02:38]}  Nxe5 {[%clk 0:01:35]} 14. fxe5 {[%clk 0:02:29]}  Ne4 {[%clk 0:01:36]} 15. Nf3 {[%clk 0:02:25]}  Bxh4+ {[%clk 0:01:31]} 16. Qxh4 {[%clk 0:02:26]}  cxd4 {[%clk 0:01:18]} 17. exd4 {[%clk 0:02:20]}  Qd8 {[%clk 0:00:53]} 18. Qf4 {[%clk 0:02:10]}  f5 {[%clk 0:00:48]} 19. exf6 {[%clk 0:02:07]}  Rxf6 {[%clk 0:00:47]} 20. Qe3 {[%clk 0:02:06]}  Rg6 {[%clk 0:00:36]} 21. O-O {[%clk 0:01:50]}  Rf6 {[%clk 0:00:19]} 22. Rae1 {[%clk 0:01:42]}  Qe7 {[%clk 0:00:16]} 23. Bxe4 {[%clk 0:01:39]}  dxe4 {[%clk 0:00:17]} 24. Nd2 {[%clk 0:01:40]}  Rxf1+ {[%clk 0:00:14]} 25. Rxf1 {[%clk 0:01:41]}  Rf8 {[%clk 0:00:11]} 26. Rxf8+ {[%clk 0:01:35]}  Qxf8 {[%clk 0:00:12]} 27. Nxe4 {[%clk 0:01:36]}  Bxe4 {[%clk 0:00:12]} 28. Qxe4 {[%clk 0:01:37]}  Qe7 {[%clk 0:00:12]} 29. Kf2 {[%clk 0:01:21]}  h6 {[%clk 0:00:11]} 30. Ke2 {[%clk 0:01:19]}  Qd7 {[%clk 0:00:10]} 31. c4 {[%clk 0:01:14]}  Kh8 {[%clk 0:00:09]} 32. b3 {[%clk 0:01:12]}  Qf7 {[%clk 0:00:08]} 33. h3 {[%clk 0:01:07]}  Qh5+ {[%clk 0:00:07]} 34. Qf3 {[%clk 0:01:05]}  Qg6 {[%clk 0:00:06]} 35. Ke3 {[%clk 0:01:00]}  Qc2 {[%clk 0:00:05]} 36. Qa8+ {[%clk 0:01:00]}  Kh7 {[%clk 0:00:05]} 37. Qe4+ {[%clk 0:01:01]}  Qxe4+ {[%clk 0:00:05]} 38. Kxe4 {[%clk 0:01:02]}  Kg6 {[%clk 0:00:04]} 39. Ke5 {[%clk 0:01:00]}  Kf7 {[%clk 0:00:05]} 40. c5 {[%clk 0:01:00]}  bxc5 {[%clk 0:00:03]} 41. dxc5 {[%clk 0:01:01]}  Ke7 {[%clk 0:00:03]} 42. c6 {[%clk 0:01:00]}  a5 {[%clk 0:00:01]} 43. a3 {[%clk 0:01:00]} 1-0


[Site "https://www.chess.com"]

[Event "Titled Tuesday Blitz October 31 Late 2023"]
[White "Holt, Conrad"]
[Black "Czerw, Dawid"]
[WhiteFideId "2034387"]
[BlackFideId "1145746"]
[WhiteElo "2803"]
[BlackElo "2496"]
[Result "1-0"]
[Round "3"]
[TimeControl "180+1"]
[Date "2023.10.31"]
[WhiteClock "0:00:29"]
[BlackClock "0:00:01"]
[Board "59"]

1. d4 {[%clk 0:03:00]}  d5 {[%clk 0:02:59]} 2. c4 {[%clk 0:03:01]}  c6 {[%clk 0:02:59]} 3. Nc3 {[%clk 0:03:01]}  Nf6 {[%clk 0:02:59]} 4. e3 {[%clk 0:03:01]}  a6 {[%clk 0:02:58]} 5. Nf3 {[%clk 0:02:56]}  b5 {[%clk 0:02:58]} 6. c5 {[%clk 0:02:51]}  Bg4 {[%clk 0:02:50]} 7. Qc2 {[%clk 0:02:48]}  Bxf3 {[%clk 0:02:49]} 8. gxf3 {[%clk 0:02:48]}  Nbd7 {[%clk 0:02:44]} 9. f4 {[%clk 0:02:47]}  e6 {[%clk 0:02:42]} 10. Rg1 {[%clk 0:02:41]}  g6 {[%clk 0:02:41]} 11. Bd3 {[%clk 0:02:38]}  Bg7 {[%clk 0:02:41]} 12. Bd2 {[%clk 0:02:38]}  a5 {[%clk 0:02:34]} 13. Ne2 {[%clk 0:01:51]}  O-O {[%clk 0:02:28]} 14. h4 {[%clk 0:01:45]}  Nh5 {[%clk 0:02:26]} 15. Rg5 {[%clk 0:01:42]}  Ndf6 {[%clk 0:02:17]} 16. O-O-O {[%clk 0:01:39]}  Kh8 {[%clk 0:01:49]} 17. Rdg1 {[%clk 0:01:36]}  Bh6 {[%clk 0:01:47]} 18. R5g2 {[%clk 0:01:28]}  Ng8 {[%clk 0:01:44]} 19. Ng3 {[%clk 0:01:25]}  f5 {[%clk 0:01:36]} 20. Nxh5 {[%clk 0:01:19]}  gxh5 {[%clk 0:01:36]} 21. Qd1 {[%clk 0:01:10]}  Nf6 {[%clk 0:01:34]} 22. Be2 {[%clk 0:01:09]}  Qe8 {[%clk 0:01:26]} 23. Be1 {[%clk 0:01:04]}  Qf7 {[%clk 0:01:23]} 24. Rg5 {[%clk 0:00:53]}  Bxg5 {[%clk 0:01:12]} 25. hxg5 {[%clk 0:00:52]}  Ng4 {[%clk 0:00:51]} 26. Qd2 {[%clk 0:00:42]}  Rg8 {[%clk 0:00:34]} 27. Rh1 {[%clk 0:00:40]}  h6 {[%clk 0:00:09]} 28. f3 {[%clk 0:00:39]}  hxg5 {[%clk 0:00:09]} 29. fxg4 {[%clk 0:00:37]}  fxg4 {[%clk 0:00:09]} 30. Bxg4 {[%clk 0:00:36]}  h4 {[%clk 0:00:08]} 31. fxg5 {[%clk 0:00:31]}  Rxg5 {[%clk 0:00:07]} 32. Bxh4 {[%clk 0:00:29]}  Rxg4 {[%clk 0:00:02]} 33. Bf6+ {[%clk 0:00:29]}  Kg8 {[%clk 0:00:01]} 34. Rh8# {[%clk 0:00:29]} 1-0


[Site "https://www.chess.com"]

[Event "Titled Tuesday Blitz October 31 Late 2023"]
[White "Buchenau, Frank"]
[Black "Blanco Ronquillo, Humberto L."]
[WhiteFideId "4604350"]
[BlackFideId "3504239"]
[WhiteElo "2478"]
[BlackElo "2742"]
[Result "1-0"]
[Round "3"]
[TimeControl "180+1"]
[Date "2023.10.31"]
[WhiteClock "0:00:09"]
[BlackClock "0:00:22"]
[Board "63"]

1. e4 {[%clk 0:03:00]}  e5 {[%clk 0:02:58]} 2. Bc4 {[%clk 0:03:00]}  Nf6 {[%clk 0:02:57]} 3. d3 {[%clk 0:03:00]}  c6 {[%clk 0:02:57]} 4. Nf3 {[%clk 0:03:00]}  d5 {[%clk 0:02:55]} 5. Bb3 {[%clk 0:03:00]}  Bb4+ {[%clk 0:02:54]} 6. Bd2 {[%clk 0:02:59]}  Bxd2+ {[%clk 0:02:54]} 7. Nbxd2 {[%clk 0:02:59]}  O-O {[%clk 0:02:45]} 8. O-O {[%clk 0:02:58]}  Re8 {[%clk 0:02:45]} 9. Re1 {[%clk 0:02:58]}  d4 {[%clk 0:02:28]} 10. Nc4 {[%clk 0:02:51]}  Qc7 {[%clk 0:02:24]} 11. c3 {[%clk 0:02:42]}  b5 {[%clk 0:02:21]} 12. Ncd2 {[%clk 0:02:25]}  dxc3 {[%clk 0:02:12]} 13. bxc3 {[%clk 0:02:25]}  Be6 {[%clk 0:02:12]} 14. d4 {[%clk 0:02:19]}  Nbd7 {[%clk 0:02:06]} 15. Bxe6 {[%clk 0:02:08]}  Rxe6 {[%clk 0:02:07]} 16. a4 {[%clk 0:02:06]}  Rae8 {[%clk 0:01:32]} 17. axb5 {[%clk 0:01:43]}  cxb5 {[%clk 0:01:33]} 18. Qb3 {[%clk 0:01:38]}  Rb6 {[%clk 0:01:23]} 19. h3 {[%clk 0:00:59]}  h6 {[%clk 0:01:23]} 20. c4 {[%clk 0:00:49]}  exd4 {[%clk 0:01:17]} 21. cxb5 {[%clk 0:00:43]}  Ne5 {[%clk 0:01:03]} 22. Nxd4 {[%clk 0:00:38]}  Rd6 {[%clk 0:00:58]} 23. N2f3 {[%clk 0:00:18]}  Nxf3+ {[%clk 0:00:57]} 24. Nxf3 {[%clk 0:00:18]}  Nxe4 {[%clk 0:00:58]} 25. Re3 {[%clk 0:00:13]}  Rde6 {[%clk 0:00:55]} 26. Nd4 {[%clk 0:00:12]}  Rf6 {[%clk 0:00:39]} 27. Rae1 {[%clk 0:00:10]}  Nd6 {[%clk 0:00:38]} 28. Rxe8+ {[%clk 0:00:10]}  Nxe8 {[%clk 0:00:38]} 29. Rxe8+ {[%clk 0:00:09]}  Kh7 {[%clk 0:00:37]} 30. Qc2+ {[%clk 0:00:09]}  Qxc2 {[%clk 0:00:35]} 31. Nxc2 {[%clk 0:00:10]}  Rf5 {[%clk 0:00:35]} 32. Rb8 {[%clk 0:00:10]}  Rc5 {[%clk 0:00:35]} 33. Ne3 {[%clk 0:00:10]}  Rc1+ {[%clk 0:00:35]} 34. Kh2 {[%clk 0:00:09]}  Rb1 {[%clk 0:00:35]} 35. Kg3 {[%clk 0:00:09]}  a6 {[%clk 0:00:35]} 36. b6 {[%clk 0:00:09]}  a5 {[%clk 0:00:36]} 37. Nd5 {[%clk 0:00:09]}  a4 {[%clk 0:00:36]} 38. Ra8 {[%clk 0:00:09]}  Rb5 {[%clk 0:00:35]} 39. Rxa4 {[%clk 0:00:08]}  Rxd5 {[%clk 0:00:36]} 40. Rb4 {[%clk 0:00:07]}  Rd8 {[%clk 0:00:36]} 41. b7 {[%clk 0:00:08]}  Rb8 {[%clk 0:00:37]} 42. Kf4 {[%clk 0:00:08]}  Kg8 {[%clk 0:00:33]} 43. Ke5 {[%clk 0:00:08]}  Kf8 {[%clk 0:00:22]} 44. Kd6 {[%clk 0:00:09]} 1-0


[Site "https://www.chess.com"]